bitfinex-derivatives/quotes_BTCF0:USTF0_20240814
["timestamp","ask_amount","ask_price","bid_price","bid_amount"]
[1723627397746,0.442912,60873.0,60872.0,0.05200309]
[1723627398453,0.442912,60873.0,60872.0,0.05100309]
[1723627399356,0.442912,60873.0,60872.0,0.05200309]
[1723627399555,0.442912,60873.0,60872.0,0.05100309]
[1723627400146,0.442912,60873.0,60872.0,0.05200309]
[1723627401158,0.442912,60873.0,60872.0,0.05100309]
[1723627401558,0.50821657,60873.0,60872.0,0.05100309]
[1723627401760,0.51021657,60873.0,60872.0,0.05000309]
[1723627402348,0.442912,60873.0,60872.0,0.05000309]
[1723627403057,0.50821657,60873.0,60872.0,0.05000309]
[1723627403253,0.442912,60873.0,60872.0,0.05000309]
[1723627403461,0.442912,60873.0,60872.0,0.05100309]
[1723627403852,0.443912,60873.0,60872.0,0.05100309]
[1723627404762,0.443912,60873.0,60872.0,0.05200309]
[1723627405356,0.443912,60873.0,60872.0,0.05100309]
[1723627405659,0.443912,60873.0,60872.0,0.05200309]
[1723627406360,0.52573807,60873.0,60872.0,0.05200309]
[1723627407162,0.52473807,60873.0,60872.0,0.05200309]
[1723627407365,0.442912,60873.0,60872.0,0.10122933]
[1723627408260,0.082112,60873.0,60872.0,0.05200309]
[1723627408560,0.83033258,60873.0,60872.0,0.05100309]
[1723627408965,0.83033258,60873.0,60872.0,0.05000309]
[1723627410267,0.83133258,60873.0,60872.0,0.05000309]
[1723627411557,0.082118,60868.0,60867.0,0.04925448]
[1723627411764,0.082118,60868.0,60867.0,0.0093925]
[1723627411765,0.46953993,60868.0,60867.0,0.0093925]
[1723627411978,0.08212,60867.0,60864.0,0.04925448]
[1723627412170,0.16404536,60867.0,60864.0,0.04925448]
[1723627412571,0.16418602,60867.0,60864.0,0.04925448]
[1723627412772,0.08226066,60867.0,60865.0,0.04925448]
[1723627412963,0.08226066,60867.0,60866.0,0.13162178]
[1723627413463,0.08226066,60867.0,60866.0,0.0823673]
[1723627413869,0.19586066,60867.0,60866.0,0.09162479]
[1723627415573,0.19586066,60867.0,60866.0,0.09562479]
[1723627416371,0.19586066,60867.0,60866.0,0.01350379]
[1723627416571,0.19586066,60867.0,60866.0,0.01850379]
[1723627417461,0.11374066,60867.0,60866.0,0.10062479]
[1723627418064,0.00014066,60867.0,60866.0,0.10062479]
[1723627418469,0.00014066,60867.0,60866.0,0.21422479]
[1723627419271,0.11374066,60867.0,60866.0,0.10062479]
[1723627420179,0.1792513,60867.0,60866.0,0.10062479]
[1723627420976,0.11374066,60867.0,60866.0,0.16627543]
[1723627421773,0.11374066,60867.0,60866.0,0.21422479]
[1723627421774,0.00014066,60867.0,60866.0,0.21422479]
[1723627421963,0.06551064,60875.0,60866.0,1.39570712]
[1723627422170,0.03848366,60879.0,60874.0,0.1136]
[1723627422372,0.0002463,60879.0,60878.0,0.1136]
[1723627422574,0.0002463,60879.0,60878.0,0.1792221]
[1723627422775,0.0002463,60879.0,60878.0,0.1136]
[1723627422974,0.00030873,60879.0,60878.0,0.1136]
[1723627423278,0.00030873,60879.0,60878.0,0.26129343]
[1723627424277,0.00030873,60879.0,60878.0,0.195705]
[1723627425072,0.00030873,60879.0,60878.0,0.26129343]
[1723627425276,0.00030873,60879.0,60878.0,0.195705]
[1723627427073,0.00930873,60879.0,60878.0,0.196705]
[1723627427583,0.00930873,60879.0,60878.0,0.24584026]
[1723627428278,0.00930873,60879.0,60878.0,0.196705]
[1723627428475,0.00730873,60879.0,60878.0,0.196705]
[1723627429678,0.00730873,60879.0,60878.0,0.20611013]
[1723627429881,0.01630873,60879.0,60878.0,0.20711013]
[1723627430182,0.02330873,60879.0,60878.0,0.20811013]
[1723627431979,0.02330873,60879.0,60878.0,0.35811013]
[1723627433487,0.02330873,60879.0,60878.0,0.24451013]
[1723627434486,0.02330873,60879.0,60878.0,0.09451013]
[1723627443681,0.3608,60895.0,60894.0,0.082083]
[1723627443877,0.3608,60895.0,60894.0,0.195683]
[1723627444487,0.3608,60895.0,60894.0,0.24479084]
[1723627445185,0.3608,60895.0,60894.0,0.24477486]
[1723627445794,0.3728,60895.0,60894.0,0.24577486]
[1723627446091,0.3728,60895.0,60894.0,0.09226525]
[1723627446785,0.3728,60895.0,60894.0,0.14135711]
[1723627447290,0.3728,60895.0,60894.0,0.09226525]
[1723627447488,0.3608,60895.0,60894.0,0.09126525]
[1723627448693,0.3718,60895.0,60894.0,0.09226525]
[1723627449793,0.004,60895.0,60894.0,0.09126525]
[1723627451088,0.03060659,60895.0,60894.0,0.09126525]
[1723627451296,0.07732434,60895.0,60894.0,0.09126525]
[1723627455499,0.07922617,60895.0,60894.0,0.09126525]
[1723627456596,0.07922617,60895.0,60894.0,0.00918225]
[1723627456800,0.07922617,60895.0,60889.0,0.1527]
[1723627457003,0.07322617,60894.0,60889.0,0.3227]
[1723627457201,0.07322617,60893.0,60889.0,0.3227]
[1723627457394,0.07322617,60892.0,60889.0,0.3227]
[1723627457699,0.006,60895.0,60894.0,0.082083]
[1723627459501,0.004,60895.0,60894.0,0.082083]
[1723627460198,0.3608,60897.0,60895.0,0.082082]
[1723627461100,0.3608,60897.0,60896.0,0.082081]
[1723627463208,0.3668,60897.0,60896.0,0.083081]
[1723627463699,0.3698,60897.0,60896.0,0.083081]
[1723627464603,0.3698,60897.0,60896.0,0.09254204]
[1723627467504,0.451879,60897.0,60896.0,0.09254204]
[1723627468012,0.565379,60897.0,60896.0,0.09254204]
[1723627471412,0.59198577,60897.0,60896.0,0.09254204]
[1723627473210,0.59198577,60897.0,60896.0,0.01046104]
[1723627473513,0.164178,60889.0,60888.0,0.0002463]
[1723627473811,0.082095,60885.0,60884.0,0.04916762]
[1723627474011,0.27769,60885.0,60884.0,0.04916762]
[1723627475004,1.17041,60885.0,60884.0,0.00211551]
[1723627475204,1.17041,60885.0,60880.0,0.06555683]
[1723627475205,0.0821,60881.0,60880.0,0.06555683]
[1723627475410,0.5564,60881.0,60880.0,0.06555683]
[1723627476011,0.4429,60881.0,60880.0,0.06555683]
[1723627476516,0.49327363,60881.0,60873.0,0.07725929]
[1723627476710,0.4752905,60876.0,60873.0,0.08637084]
[1723627476908,0.15128443,60875.0,60873.0,0.08637084]
[1723627477109,0.06917543,60874.0,60873.0,0.08637084]
[1723627477413,0.02661593,60874.0,60873.0,0.08637084]
[1723627478618,0.3618,60881.0,60880.0,0.082102]
[1723627478808,0.4313831,60881.0,60880.0,0.082102]
[1723627479217,0.38841442,60881.0,60880.0,0.082102]
[1723627479608,0.38841357,60881.0,60880.0,0.082102]
[1723627479814,0.38741357,60881.0,60880.0,0.082102]
[1723627480920,0.38741346,60881.0,60880.0,0.082102]
[1723627481116,0.38841346,60881.0,60880.0,0.09742944]
[1723627481519,0.38841342,60881.0,60880.0,0.09742944]
[1723627481721,0.48655242,60881.0,60880.0,0.76018944]
[1723627481909,0.30145562,60881.0,60880.0,0.84229144]
[1723627482111,0.0002463,60887.0,60881.0,0.0821]
[1723627482311,0.0002463,60887.0,60886.0,0.082093]
[1723627483315,0.0002463,60887.0,60886.0,0.222093]
[1723627486729,0.0012463,60887.0,60886.0,0.222093]
[1723627488235,0.0012463,60887.0,60883.0,0.132297]
[1723627488533,0.082096,60884.0,60883.0,0.132297]
[1723627488739,0.082093,60886.0,60885.0,0.082094]
[1723627490439,0.082093,60886.0,60885.0,0.086094]
[1723627492335,0.082093,60886.0,60885.0,0.004]
[1723627493741,0.082093,60886.0,60885.0,0.006]
[1723627494239,0.082093,60886.0,60885.0,0.088095]
[1723627494440,0.0002463,60887.0,60886.0,0.082093]
[1723627494741,0.0002463,60887.0,60886.0,0.137393]
[1723627496640,0.0823383,60887.0,60886.0,0.137393]
[1723627496946,0.16411953,60887.0,60886.0,0.137393]
[1723627497441,0.16411953,60887.0,60886.0,0.140393]
[1723627498344,0.16411953,60887.0,60886.0,0.0613]
[1723627498543,0.10895058,60887.0,60886.0,0.0613]
[1723627499943,0.1958383,60887.0,60886.0,0.0613]
[1723627500138,0.27774467,60887.0,60886.0,0.0613]
[1723627500738,0.27774467,60887.0,60886.0,0.0603]
[1723627500945,0.27774467,60887.0,60886.0,0.0583]
[1723627501148,0.27774467,60887.0,60886.0,0.140393]
[1723627501643,0.08217119,60887.0,60886.0,0.300393]
[1723627501832,0.0002463,60887.0,60886.0,0.300393]
[1723627502237,0.08217119,60887.0,60886.0,0.298393]
[1723627502642,0.0002463,60887.0,60886.0,0.298393]
[1723627503244,0.08217119,60887.0,60886.0,0.298393]
[1723627503652,0.08217119,60887.0,60886.0,0.301393]
[1723627503847,0.0002463,60887.0,60886.0,0.301393]
[1723627504538,0.0823383,60887.0,60886.0,0.006]
[1723627504846,0.0823383,60887.0,60886.0,0.005]
[1723627505041,0.0823383,60887.0,60886.0,0.008]
[1723627505648,0.0823383,60887.0,60886.0,0.005]
[1723627505947,0.0823383,60887.0,60886.0,0.011]
[1723627506747,0.14790666,60887.0,60886.0,0.011]
[1723627507062,0.0002463,60887.0,60886.0,0.093093]
[1723627507542,0.0002463,60887.0,60886.0,0.30864983]
[1723627507743,0.0002463,60887.0,60886.0,0.30364983]
[1723627508142,0.0002463,60887.0,60886.0,0.238093]
[1723627508745,0.0002463,60887.0,60886.0,0.236093]
[1723627508954,0.0002463,60887.0,60886.0,0.237093]
[1723627510057,0.0002463,60887.0,60886.0,0.236093]
[1723627511455,0.0002463,60887.0,60886.0,0.319186]
[1723627511748,0.3608,60894.0,60893.0,0.082084]
[1723627514051,0.3638,60894.0,60893.0,0.082084]
[1723627516145,0.3608,60894.0,60893.0,0.082084]
[1723627516344,0.3648,60894.0,60893.0,0.082084]
[1723627516549,0.3678,60894.0,60893.0,0.082084]
[1723627516750,0.3698,60894.0,60893.0,0.082084]
[1723627517764,0.3698,60894.0,60893.0,0.09124954]
[1723627519251,0.009,60894.0,60893.0,0.09124954]
[1723627520357,0.091083,60894.0,60893.0,0.00916554]
[1723627520659,0.091083,60894.0,60889.0,0.057]
[1723627520854,0.091083,60894.0,60889.0,0.23636388]
[1723627521255,0.091083,60894.0,60891.0,0.082086]
[1723627521454,0.091083,60894.0,60891.0,0.232086]
[1723627521855,0.091083,60894.0,60892.0,0.082085]
[1723627522061,0.091083,60894.0,60892.0,0.232085]
[1723627522261,0.009,60894.0,60893.0,0.574764]
[1723627522458,0.365859,60912.0,60893.0,0.574764]
[1723627522459,0.3608,60916.0,60893.0,1.34154]
[1723627522660,0.3608,60916.0,60900.0,0.6446]
[1723627522859,0.082058,60912.0,60906.0,0.082065]
[1723627523057,0.082058,60912.0,60907.0,0.139664]
[1723627523250,0.082058,60912.0,60908.0,0.082063]
[1723627524164,0.442854,60916.0,60908.0,0.082063]
[1723627524458,0.082055,60915.0,60908.0,0.082063]
[1723627525260,0.082055,60915.0,60909.0,0.082062]
[1723627525659,0.082056,60914.0,60909.0,0.082062]
[1723627525860,0.3608,60910.0,60907.0,0.06713801]
[1723627526054,0.442861,60910.0,60907.0,0.00953801]
[1723627526258,0.442861,60910.0,60904.0,0.0823153]
[1723627526459,0.082062,60909.0,60904.0,0.0823153]
[1723627526857,0.3608,60910.0,60904.0,0.0823153]
[1723627527262,0.082065,60907.0,60904.0,0.0823153]
[1723627527666,0.3608,60910.0,60905.0,0.082068]
[1723627528565,0.082063,60909.0,60905.0,0.082068]
[1723627529272,0.0581,60909.0,60905.0,0.082068]
[1723627531169,0.082065,60907.0,60905.0,0.082068]
[1723627532871,0.003,60909.0,60908.0,0.164128]
[1723627533077,0.3610463,60916.0,60915.0,0.082054]
[1723627533571,0.0002463,60916.0,60915.0,0.082054]
[1723627536368,0.0002463,60916.0,60915.0,0.083054]
[1723627536570,0.0002463,60916.0,60915.0,0.09241108]
[1723627537374,0.3650463,60916.0,60915.0,0.01135708]
[1723627537876,0.4470993,60916.0,60915.0,0.01135708]
[1723627538075,0.4470993,60916.0,60915.0,0.002]
[1723627539276,1.3395793,60916.0,60904.0,0.0002463]
[1723627539475,0.3608,60908.0,60906.0,0.082065]
[1723627541475,0.3608,60908.0,60904.0,0.0096797]
[1723627541675,0.082068,60905.0,60904.0,0.0096797]
[1723627541975,0.082068,60905.0,60904.0,0.0002463]
[1723627542368,0.574628,60905.0,60904.0,0.0002463]
[1723627543076,0.58412845,60905.0,60904.0,0.0002463]
[1723627543681,0.58512845,60905.0,60904.0,0.0002463]
[1723627544372,0.65047926,60905.0,60904.0,0.0002463]
[1723627544567,0.09256845,60905.0,60904.0,0.0002463]
[1723627544971,0.14841931,60905.0,60904.0,0.0002463]
[1723627545284,0.083068,60905.0,60904.0,0.0002463]
[1723627545673,0.084068,60905.0,60904.0,0.0002463]
[1723627548178,0.002,60905.0,60904.0,0.0823153]
[1723627548384,0.002,60908.0,60907.0,0.082065]
[1723627548579,0.002,60908.0,60907.0,0.952112]
[1723627548784,0.42620315,60919.0,60915.0,0.082054]
[1723627548785,0.3608,60919.0,60915.0,0.082054]
[1723627549883,0.42620315,60919.0,60915.0,0.082054]
[1723627551488,0.0052463,60916.0,60915.0,0.25229461]
[1723627552179,0.0052463,60916.0,60915.0,0.09229461]
[1723627552378,0.0052463,60916.0,60915.0,0.20309461]
[1723627554682,0.0052463,60916.0,60915.0,0.20409461]
[1723627556981,0.0052463,60916.0,60915.0,0.12204061]
[1723627557186,0.0872993,60916.0,60915.0,0.06924061]
[1723627561587,0.0872993,60916.0,60915.0,0.002]
[1723627561893,0.5797793,60916.0,60915.0,0.002]
[1723627562089,0.0872993,60916.0,60915.0,0.002]
[1723627562293,0.0872993,60916.0,60915.0,0.084054]
[1723627564187,0.0872993,60916.0,60915.0,0.002]
[1723627572700,0.5301523,60916.0,60915.0,0.002]
[1723627573488,0.55675094,60916.0,60915.0,0.002]
[1723627574098,0.47469794,60916.0,60915.0,0.002]
[1723627575796,0.96717794,60916.0,60907.0,0.0567]
[1723627576098,0.3608,60908.0,60907.0,0.0567]
[1723627576300,0.3608,60908.0,60907.0,0.06594435]
[1723627577308,0.442863,60908.0,60907.0,0.06594435]
[1723627577491,0.52477991,60908.0,60907.0,0.06594435]
[1723627577693,0.60684291,60908.0,60907.0,0.06594435]
[1723627578098,0.524926,60908.0,60907.0,0.06594435]
[1723627578302,0.55152516,60908.0,60907.0,0.06594435]
[1723627579198,0.524926,60908.0,60907.0,0.06594435]
[1723627579411,0.19072516,60908.0,60907.0,0.06594435]
[1723627579694,0.55152516,60908.0,60907.0,0.06594435]
[1723627579900,0.528926,60908.0,60907.0,0.18162554]
[1723627580202,0.528926,60908.0,60907.0,0.14796985]
[1723627580408,0.528926,60908.0,60907.0,0.06594435]
[1723627581609,0.446863,60908.0,60907.0,0.06594435]
[1723627582007,0.446863,60908.0,60907.0,0.14796985]
[1723627582407,0.446863,60908.0,60907.0,0.06594435]
[1723627584608,0.446863,60908.0,60907.0,0.14796985]
[1723627585510,0.086063,60908.0,60907.0,0.14796985]
[1723627585810,0.446863,60908.0,60907.0,0.14796985]
[1723627586108,0.446863,60908.0,60907.0,0.33166738]
[1723627586109,0.3648,60908.0,60907.0,0.33166738]
[1723627586305,0.3648,60908.0,60907.0,0.61546738]
[1723627587105,0.3648,60908.0,60907.0,0.69753238]
[1723627587312,0.004,60908.0,60907.0,0.6974115]
[1723627588100,0.004,60908.0,60907.0,0.4136115]
[1723627589014,0.004,60908.0,60907.0,0.41361224]
[1723627595619,0.086064,60908.0,60907.0,0.41361224]
[1723627596820,0.086064,60908.0,60907.0,0.26361224]
[1723627597120,0.086064,60908.0,60907.0,0.33154724]
[1723627597323,0.086064,60908.0,60907.0,0.41361224]
[1723627599919,0.086064,60908.0,60907.0,0.52711224]
[1723627602814,0.004,60908.0,60907.0,0.52711224]
[1723627604525,0.004,60908.0,60907.0,0.62526537]
[1723627606527,0.3608,60911.0,60910.0,0.082061]
[1723627606727,0.06562646,60915.0,60914.0,0.082056]
[1723627607032,0.06587276,60916.0,60915.0,0.082054]
[1723627607226,0.06587276,60916.0,60915.0,0.252054]
[1723627608432,0.0002463,60916.0,60915.0,0.252054]
[1723627612532,0.0002463,60916.0,60915.0,0.26259668]
[1723627613926,0.0002463,60916.0,60915.0,0.26359668]
[1723627617230,0.02684357,60916.0,60915.0,0.26359668]
[1723627618833,0.0002463,60916.0,60915.0,0.26359668]
[1723627621632,0.08222086,60916.0,60915.0,0.26359668]
[1723627622835,0.08222086,60916.0,60915.0,0.09359668]
[1723627623034,0.02684417,60916.0,60915.0,0.09359668]
[1723627623338,0.02684417,60916.0,60915.0,0.01154268]
[1723627624932,0.0002463,60916.0,60915.0,0.01154268]
[1723627625424,0.0822993,60916.0,60915.0,0.01154268]
[1723627626339,0.0822993,60916.0,60915.0,0.06069097]
[1723627629340,0.0822993,60916.0,60915.0,0.01154268]
[1723627630232,0.0822993,60916.0,60915.0,0.09359668]
[1723627630538,0.14789693,60916.0,60915.0,0.09359668]
[1723627631038,0.0822993,60916.0,60915.0,0.09359668]
[1723627632444,0.0822993,60916.0,60915.0,0.15913681]
[1723627633144,0.0822993,60916.0,60915.0,0.30913681]
[1723627634538,0.0822993,60916.0,60915.0,0.22708281]
[1723627634735,0.0822993,60916.0,60915.0,0.16154268]
[1723627635341,0.0822993,60916.0,60915.0,0.01154268]
[1723627639742,0.0822993,60916.0,60915.0,0.06067434]
[1723627641140,0.0822993,60916.0,60915.0,0.01154268]
[1723627642939,0.0822993,60916.0,60915.0,0.06066329]
[1723627646343,0.0822993,60916.0,60915.0,0.01154268]
[1723627649642,0.0822993,60916.0,60915.0,0.06764268]
[1723627650043,0.0822993,60916.0,60915.0,0.18114268]
[1723627650643,0.0822993,60916.0,60915.0,0.01154268]
[1723627651637,0.16428155,60916.0,60915.0,0.01154268]
[1723627653553,0.0822993,60916.0,60915.0,0.01154268]
[1723627654153,0.16436932,60916.0,60915.0,0.01154268]
[1723627655863,0.16436932,60916.0,60915.0,0.07708281]
[1723627657757,0.0822993,60916.0,60915.0,0.01154268]
[1723627658651,0.3044515,60916.0,60915.0,0.002]
[1723627659656,0.1088985,60916.0,60915.0,0.002]
[1723627659855,0.16436245,60916.0,60915.0,0.002]
[1723627660053,0.16436245,60916.0,60915.0,0.084054]
[1723627660854,0.0822993,60916.0,60915.0,0.14959413]
[1723627661858,0.0002463,60916.0,60915.0,0.29959413]
[1723627662756,0.3610463,60916.0,60915.0,0.29959413]
[1723627666259,0.0002463,60916.0,60915.0,0.29959413]
[1723627666754,0.3610463,60916.0,60915.0,0.29959413]
[1723627669061,0.44310945,60916.0,60915.0,0.29959413]
[1723627671853,0.3610463,60916.0,60915.0,0.29959413]
[1723627672253,0.3610463,60916.0,60915.0,0.234054]
[1723627672454,0.3608,60923.0,60915.0,0.152]
[1723627672455,0.08206315,60919.0,60915.0,0.152]
[1723627672758,0.08206315,60920.0,60919.0,0.082049]
[1723627673062,0.3608,60923.0,60919.0,0.2276]
[1723627673063,0.4588237,60923.0,60919.0,0.2276]
[1723627673255,0.0265985,60922.0,60920.0,0.13124553]
[1723627673456,0.0265985,60922.0,60921.0,0.1135]
[1723627674664,0.02659851,60922.0,60921.0,0.1135]
[1723627676149,0.02659851,60922.0,60921.0,0.1145]
[1723627676362,0.02759851,60922.0,60921.0,0.1155]
[1723627677756,0.02759851,60922.0,60921.0,0.12475503]
[1723627678561,0.02659851,60922.0,60921.0,0.20480103]
[1723627679148,0.02659851,60922.0,60921.0,0.20580103]
[1723627679354,0.02759851,60922.0,60921.0,0.20680103]
[1723627680066,0.02859851,60922.0,60921.0,0.20780103]
[1723627680255,0.02859851,60922.0,60921.0,0.36780103]
[1723627681968,0.02659851,60922.0,60921.0,0.36580103]
[1723627682470,0.02759851,60922.0,60921.0,0.36680103]
[1723627684766,0.001,60922.0,60921.0,0.36680103]
[1723627685066,0.08300985,60922.0,60921.0,0.36680103]
[1723627686559,0.001,60922.0,60921.0,0.41599956]
[1723627686760,0.08200985,60924.0,60923.0,0.082043]
[1723627686966,0.08200985,60924.0,60923.0,0.365543]
[1723627689761,0.08200985,60926.0,60923.0,0.33367165]
[1723627690063,0.3608,60936.0,60923.0,0.33367165]
[1723627690064,0.09839597,60932.0,60931.0,0.082033]
[1723627690267,0.09839597,60933.0,60932.0,0.082031]
[1723627690562,0.02659579,60933.0,60932.0,0.195531]
[1723627690768,0.02659551,60934.0,60933.0,0.082029]
[1723627690968,0.0265955,60934.0,60933.0,0.082029]
[1723627691168,0.0265955,60935.0,60932.0,0.1135]
[1723627691365,0.0265955,60934.0,60933.0,0.08203]
[1723627691665,0.02659541,60934.0,60933.0,0.1135]
[1723627692062,0.02659535,60935.0,60933.0,0.1135]
[1723627692267,0.02659535,60934.0,60933.0,0.19553]
[1723627692469,0.02659535,60934.0,60933.0,0.1135]
[1723627692764,0.3608,60936.0,60935.0,0.082027]
[1723627692970,0.38739539,60936.0,60935.0,0.082027]
[1723627693170,0.54758309,60936.0,60935.0,0.082027]
[1723627694360,0.4332221,60936.0,60935.0,0.082027]
[1723627694765,0.54758309,60936.0,60935.0,0.082027]
[1723627695468,0.4332221,60936.0,60935.0,0.082027]
[1723627695966,0.43316388,60936.0,60935.0,0.082027]
[1723627696661,0.43316388,60936.0,60935.0,0.09127796]
[1723627697369,0.54752487,60936.0,60935.0,0.00925096]
[1723627697565,0.54752487,60936.0,60935.0,0.001]
[1723627698175,0.54752487,60936.0,60935.0,0.083027]
[1723627698771,0.54852487,60936.0,60935.0,0.084027]
[1723627700171,0.38839542,60936.0,60935.0,0.084027]
[1723627700678,0.02759542,60936.0,60935.0,0.084027]
[1723627700971,0.001,60936.0,60935.0,0.084027]
[1723627707575,0.0275902,60936.0,60935.0,0.084027]
[1723627707771,0.001,60936.0,60935.0,0.084027]
[1723627711070,0.001,60936.0,60935.0,0.254027]
[1723627714474,0.001,60936.0,60935.0,0.2622277]
[1723627715682,0.3608,60938.0,60936.0,0.082025]
[1723627715887,0.3708,60938.0,60937.0,0.1135]
[1723627716582,0.3708,60938.0,60937.0,0.1217007]
[1723627717574,0.3718,60938.0,60937.0,0.1217007]
[1723627718381,0.011,60938.0,60937.0,0.1217007]
[1723627718574,0.3718,60938.0,60937.0,0.1217007]
[1723627719484,0.3718,60938.0,60937.0,0.1227007]
[1723627720078,0.3708,60938.0,60937.0,0.1227007]
[1723627720280,0.43625796,60938.0,60937.0,0.1227007]
[1723627720683,0.43625796,60938.0,60937.0,0.1237007]
[1723627720883,0.43725796,60938.0,60937.0,0.1237007]
[1723627722686,0.3718,60938.0,60937.0,0.1237007]
[1723627723582,0.3718,60938.0,60937.0,0.2057247]
[1723627724987,0.3718,60938.0,60937.0,0.3557247]
[1723627727290,0.43725796,60938.0,60937.0,0.3557247]
[1723627727599,0.43725796,60938.0,60937.0,0.40489635]
[1723627727982,0.43725796,60938.0,60937.0,0.3557247]
[1723627728184,0.43725796,60938.0,60937.0,0.40489635]
[1723627728479,0.3718,60938.0,60937.0,0.40489635]
[1723627728685,0.3718,60938.0,60937.0,0.3557247]
[1723627730287,0.27849739,60938.0,60937.0,0.3557247]
[1723627730589,0.63929739,60938.0,60937.0,0.3557247]
[1723627730787,0.50859912,60938.0,60937.0,0.3557247]
[1723627731294,0.50859912,60938.0,60937.0,0.2422247]
[1723627731481,0.50859912,60938.0,60937.0,0.3557247]
[1723627732695,0.50871974,60938.0,60937.0,0.3557247]
[1723627735792,0.63941801,60938.0,60937.0,0.3557247]
[1723627735994,0.50871974,60938.0,60937.0,0.3557247]
[1723627736593,0.50871974,60938.0,60937.0,0.2982833]
[1723627737100,0.53498972,60938.0,60937.0,0.2982833]
[1723627737295,0.4538327,60938.0,60937.0,0.2982833]
[1723627737902,0.5358577,60938.0,60937.0,0.2982833]
[1723627738199,0.3983899,60938.0,60937.0,0.2982833]
[1723627738408,0.3983899,60938.0,60937.0,0.1482833]
[1723627739302,0.89071018,60938.0,60932.0,0.06556659]
[1723627739489,0.89071018,60938.0,60922.0,0.09841119]
[1723627739490,0.082033,60932.0,60931.0,0.04917729]
[1723627739694,0.082033,60932.0,60930.0,0.00966793]
[1723627739695,0.082034,60931.0,60930.0,0.1135]
[1723627740002,0.10862418,60931.0,60930.0,0.16268252]
[1723627740398,0.082034,60931.0,60930.0,0.1135]
[1723627740703,0.10862742,60931.0,60930.0,0.12294312]
[1723627740901,0.10862789,60931.0,60930.0,0.00944312]
[1723627741103,0.10862789,60931.0,60930.0,0.16266019]
[1723627741104,0.24606343,60931.0,60930.0,0.16266019]
[1723627741601,0.16402943,60931.0,60930.0,0.16266019]
[1723627741796,0.27752943,60931.0,60930.0,0.04916019]
[1723627741997,0.85192343,60931.0,60930.0,0.04916019]
[1723627742199,0.082046,60922.0,60921.0,0.03832627]
[1723627742501,0.082047,60921.0,60920.0,0.3259]
[1723627742691,0.2449923,60921.0,60920.0,0.3259]
[1723627743007,0.082054,60916.0,60915.0,0.0531]
[1723627743298,0.082054,60916.0,60909.0,0.1951103]
[1723627743299,0.53981302,60916.0,60909.0,0.1951103]
[1723627743494,0.3608,60911.0,60909.0,0.2520103]
[1723627743700,0.3608,60911.0,60909.0,0.1958103]
[1723627743901,0.3608,60911.0,60909.0,0.20552633]
[1723627744094,0.3608,60911.0,60909.0,0.12346233]
[1723627744301,0.3608,60911.0,60910.0,0.082062]
[1723627744898,0.3608,60911.0,60910.0,0.232062]
[1723627745306,0.3608,60911.0,60910.0,0.724582]
[1723627745502,0.35600736,60911.0,60910.0,0.724582]
[1723627745695,0.29620855,60911.0,60910.0,1.124582]
[1723627747407,0.29620855,60911.0,60910.0,1.135582]
[1723627747600,0.26583855,60911.0,60910.0,1.135582]
[1723627748504,0.26583855,60911.0,60910.0,0.745582]
[1723627749702,0.3608,60920.0,60919.0,0.08205]
[1723627749904,0.7216,60920.0,60919.0,0.19555]
[1723627750202,0.3608,60920.0,60919.0,0.19555]
[1723627750408,0.0002463,60922.0,60921.0,0.082047]
[1723627750706,0.0002463,60922.0,60921.0,0.222047]
[1723627751510,0.0002463,60922.0,60921.0,0.082047]
[1723627752504,0.0002463,60922.0,60921.0,0.242047]
[1723627752902,0.0002463,60922.0,60921.0,0.36483491]
[1723627753303,0.0002463,60922.0,60921.0,0.36583491]
[1723627754009,0.0002463,60922.0,60921.0,0.36683491]
[1723627761113,0.3608,60926.0,60925.0,0.082042]
[1723627761416,0.3608,60926.0,60925.0,0.345542]
[1723627763816,0.3628,60926.0,60925.0,0.345542]
[1723627771022,0.002,60926.0,60925.0,0.345542]
[1723627773323,0.002,60926.0,60925.0,0.427584]
[1723627773825,0.002,60926.0,60925.0,0.345542]
[1723627776022,0.084041,60926.0,60925.0,0.15]
[1723627776319,0.082045,60923.0,60921.0,0.15672047]
[1723627776519,0.082045,60923.0,60922.0,0.1135]
[1723627776722,0.06750101,60926.0,60923.0,0.082043]
[1723627776723,0.002,60926.0,60923.0,0.082043]
[1723627776913,0.084041,60926.0,60925.0,0.1135]
[1723627778526,0.084041,60926.0,60925.0,0.195542]
[1723627779323,0.14954201,60926.0,60925.0,0.195542]
[1723627782918,0.14754201,60926.0,60925.0,0.195542]
[1723627783329,0.06550101,60927.0,60926.0,0.082041]
[1723627783539,0.06550101,60927.0,60926.0,0.365541]
[1723627784424,0.06550101,60928.0,60927.0,0.082039]
[1723627784625,0.06550101,60928.0,60927.0,0.288239]
[1723627786231,0.3608,60929.0,60928.0,0.082038]
[1723627786430,0.3608,60929.0,60928.0,0.232038]
[1723627787833,0.08198191,60931.0,60930.0,0.082035]
[1723627788037,0.44278191,60931.0,60930.0,0.345535]
[1723627788535,0.3608,60931.0,60930.0,0.345535]
[1723627790340,0.3608,60931.0,60930.0,0.41092056]
[1723627790636,0.3608,60931.0,60930.0,0.41192056]
[1723627791735,0.3608,60931.0,60930.0,0.41292056]
[1723627791736,0.3628,60931.0,60930.0,0.41292056]
[1723627792938,0.002,60931.0,60930.0,0.41292056]
[1723627793833,0.002,60931.0,60930.0,0.2292697]
[1723627794032,0.08398191,60931.0,60930.0,0.16388414]
[1723627794236,0.16601591,60931.0,60930.0,0.16388414]
[1723627794940,0.27951591,60931.0,60930.0,0.002]
[1723627796430,0.16601591,60931.0,60930.0,0.002]
[1723627796740,0.16601591,60931.0,60930.0,0.197535]
[1723627796927,0.08398191,60931.0,60930.0,0.347535]
[1723627797133,0.002,60931.0,60930.0,0.347535]
[1723627797932,0.08398191,60931.0,60930.0,0.347535]
[1723627798130,0.002,60931.0,60930.0,0.347535]
[1723627798545,0.002,60931.0,60930.0,0.400135]
[1723627798741,0.002,60931.0,60930.0,0.456835]
[1723627799039,0.002,60931.0,60930.0,0.52222056]
[1723627799239,0.06759492,60931.0,60930.0,0.52222056]
[1723627799433,0.002,60931.0,60930.0,0.52222056]
[1723627799633,0.002,60931.0,60930.0,0.456835]
[1723627799634,0.0675949,60931.0,60930.0,0.456835]
[1723627800836,0.0675949,60931.0,60930.0,0.5223464]
[1723627801135,0.002,60931.0,60930.0,0.5223464]